fUSD/lending_fUSD_20260515
["ID","MTS","AMOUNT","RATE_DAILY","PERIOD"]
[422329514,1778829042000,-500.0,0.00014522,2]
[422329525,1778829042000,-500.0,0.00014522,2]
[422329535,1778829042000,-500.0,0.00014522,2]
[422329520,1778829042000,-500.0,0.00014522,2]
[422329519,1778829042000,-500.0,0.00014522,2]
[422329533,1778829042000,-500.0,0.00014522,2]
[422329527,1778829042000,-500.0,0.00014522,2]
[422329531,1778829042000,-500.0,0.00014522,2]
[422329529,1778829042000,-500.0,0.00014522,2]
[422329528,1778829042000,-500.0,0.00014522,2]
[422329534,1778829042000,-500.0,0.00014522,2]
[422329526,1778829042000,-500.0,0.00014522,2]
[422329532,1778829042000,-500.0,0.00014522,2]
[422329538,1778829042000,-500.0,0.00014522,2]
[422329536,1778829042000,-500.0,0.00014522,2]
[422329518,1778829042000,-500.0,0.00014522,2]
[422329537,1778829042000,-500.0,0.00014522,2]
[422329530,1778829042000,-500.0,0.00014522,2]
[422329513,1778829042000,-500.0,0.00014522,2]
[422329497,1778829042000,-500.0,0.00014522,2]
[422329512,1778829042000,-500.0,0.00014522,2]
[422329539,1778829042000,-500.0,0.00014522,2]
[422329493,1778829042000,-467.7,0.00014522,2]
[422329489,1778829042000,-500.0,0.00014522,2]
[422329494,1778829042000,-500.0,0.00014522,2]
[422329486,1778829042000,-12554.2650312,0.00014514,2]
[422329495,1778829042000,-500.0,0.00014522,2]
[422329487,1778829042000,-304.77782066,0.00014517,2]
[422329492,1778829042000,-500.0,0.00014522,2]
[422329491,1778829042000,-500.0,0.00014522,2]
[422329490,1778829042000,-506.14328985,0.00014522,2]
[422329488,1778829042000,-150.0,0.0001452,2]
[422329507,1778829042000,-500.0,0.00014522,2]
[422329496,1778829042000,-500.0,0.00014522,2]
[422329498,1778829042000,-500.0,0.00014522,2]
[422329505,1778829042000,-500.0,0.00014522,2]
[422329500,1778829042000,-500.0,0.00014522,2]
[422329499,1778829042000,-500.0,0.00014522,2]
[422329504,1778829042000,-500.0,0.00014522,2]
[422329506,1778829042000,-500.0,0.00014522,2]
[422329502,1778829042000,-500.0,0.00014522,2]
[422329501,1778829042000,-500.0,0.00014522,2]
[422329503,1778829042000,-500.0,0.00014522,2]
[422329508,1778829042000,-500.0,0.00014522,2]
[422329509,1778829042000,-500.0,0.00014522,2]
[422329511,1778829042000,-500.0,0.00014522,2]
[422329510,1778829042000,-500.0,0.00014522,2]
[422329546,1778829042000,-500.0,0.00014522,2]
[422329542,1778829042000,-500.0,0.00014522,2]
[422329540,1778829042000,-500.0,0.00014522,2]
[422329572,1778829042000,-150.0,0.00014532,2]
[422329581,1778829042000,-150.0,0.00014578,2]
[422329580,1778829042000,-150.0,0.00014572,2]
[422329573,1778829042000,-304.77782066,0.00014532,2]
[422329570,1778829042000,-151.0,0.00014523,2]
[422329577,1778829042000,-150.0,0.00014553,2]
[422329574,1778829042000,-150.0,0.00014537,2]
[422329578,1778829042000,-304.77782066,0.00014562,2]
[422329579,1778829042000,-150.0,0.00014563,2]
[422329575,1778829042000,-150.0,0.0001454,2]
[422329588,1778829042000,-150.0,0.00014604,2]
[422329587,1778829042000,-150.0,0.00014595,2]
[422329583,1778829042000,-150.0,0.00014578,2]
[422329592,1778829042000,-150.0,0.00014623,2]
[422329591,1778829042000,-150.0,0.0001462,2]
[422329586,1778829042000,-304.77782066,0.00014593,2]
[422329595,1778829042000,-150.0,0.00014636,2]
[422329594,1778829042000,-150.0,0.00014628,2]
[422329589,1778829042000,-304.77782066,0.00014608,2]
[422329584,1778829042000,-500.0,0.00014584,2]
[422329590,1778829042000,-150.0,0.00014612,2]
[422329585,1778829042000,-150.0,0.00014587,2]
[422329593,1778829042000,-304.77782066,0.00014623,2]
[422329541,1778829042000,-500.0,0.00014522,2]
[422329596,1778829042000,-304.77782066,0.00014638,2]
[422329571,1778829042000,-150.0,0.0001453,2]
[422329582,1778829042000,-304.77782066,0.00014578,2]
[422329576,1778829042000,-304.77782066,0.00014547,2]
[422329565,1778829042000,-207.6048,0.00014523,2]
[422329543,1778829042000,-500.0,0.00014522,2]
[422329566,1778829042000,-207.6048,0.00014523,2]
[422329544,1778829042000,-500.0,0.00014522,2]
[422329545,1778829042000,-500.0,0.00014522,2]
[422329551,1778829042000,-500.0,0.00014522,2]
[422329558,1778829042000,-500.0,0.00014522,2]
[422329557,1778829042000,-500.0,0.00014522,2]
[422329556,1778829042000,-500.0,0.00014522,2]
[422329550,1778829042000,-500.0,0.00014522,2]
[422329553,1778829042000,-500.0,0.00014522,2]
[422329554,1778829042000,-500.0,0.00014522,2]
[422329549,1778829042000,-500.0,0.00014522,2]
[422329548,1778829042000,-500.0,0.00014522,2]
[422329547,1778829042000,-500.0,0.00014522,2]
[422329563,1778829042000,-151.0,0.00014523,2]
[422329552,1778829042000,-500.0,0.00014522,2]
[422329561,1778829042000,-866481.07427,0.00014523,2]
[422329568,1778829042000,-207.6048,0.00014523,2]
[422329559,1778829042000,-71432.7407523,0.00014523,2]
[422329567,1778829042000,-207.6048,0.00014523,2]
[422329564,1778829042000,-151.0,0.00014523,2]
[422329569,1778829042000,-151.0,0.00014523,2]
[422329560,1778829042000,-1637.275213,0.00014523,2]
[422329555,1778829042000,-500.0,0.00014522,2]
[422329562,1778829042000,-20695.1652043,0.00014523,2]
[422329633,1778829043000,-150.0,0.0001482,2]
[422329620,1778829043000,-150.0,0.00014758,2]
[422329629,1778829043000,-150.0,0.00014791,2]
[422329628,1778829043000,-304.77782066,0.0001479,2]
[422329624,1778829043000,-150.0,0.00014763,2]
[422329627,1778829043000,-150.0,0.00014786,2]
[422329631,1778829043000,-150.0,0.00014805,2]
[422329639,1778829043000,-150.0,0.00014836,2]
[422329637,1778829043000,-150.0,0.00014827,2]
[422329640,1778829043000,-28953.05234588,0.0001485,2]
[422329641,1778829043000,-150.0,0.0001485,2]
[422329652,1778829043000,-304.77782066,0.0001488,2]
[422329634,1778829043000,-150.0,0.0001482,2]
[422329645,1778829043000,-304.77782066,0.0001485,2]
[422329636,1778829043000,-150.0,0.00014823,2]
[422329638,1778829043000,-304.77782066,0.00014835,2]
[422329635,1778829043000,-304.77782066,0.0001482,2]
[422329632,1778829043000,-304.77782066,0.00014805,2]
[422329649,1778829043000,-500.0,0.00014858,2]
[422329650,1778829043000,-150.0,0.00014859,2]
[422329659,1778829043000,-25000.0,0.000149,3]
[422329651,1778829043000,-304.77782066,0.00014865,2]
[422329653,1778829043000,-150.0,0.00014886,2]
[422329625,1778829043000,-304.77782066,0.00014774,2]
[422329643,1778829043000,-150.0,0.0001485,2]
[422329622,1778829043000,-304.77782066,0.00014759,2]
[422329601,1778829043000,-150.0,0.00014661,2]
[422329626,1778829043000,-150.0,0.00014782,2]
[422329657,1778829043000,-304.77782066,0.00014895,2]
[422329607,1778829043000,-150.0,0.00014687,2]
[422329598,1778829043000,-150.0,0.00014653,2]
[422329597,1778829043000,-150.0,0.00014646,2]
[422329604,1778829043000,-304.77782066,0.00014668,2]
[422329605,1778829043000,-304.77782066,0.00014684,2]
[422329599,1778829043000,-150.0,0.00014653,2]
[422329602,1778829043000,-150.0,0.00014667,2]
[422329600,1778829043000,-304.77782066,0.00014653,2]
[422329603,1778829043000,-150.0,0.00014668,2]
[422329606,1778829043000,-150.0,0.00014687,2]
[422329615,1778829043000,-150.0,0.00014726,2]
[422329608,1778829043000,-150.0,0.00014693,2]
[422329611,1778829043000,-150.0,0.00014714,2]
[422329616,1778829043000,-304.77782066,0.00014729,2]
[422329613,1778829043000,-304.77782066,0.00014714,2]
[422329612,1778829043000,-150.0,0.00014714,2]
[422329614,1778829043000,-150.0,0.0001472,2]
[422329610,1778829043000,-150.0,0.00014699,2]
[422329617,1778829043000,-150.0,0.00014731,2]
[422329609,1778829043000,-304.77782066,0.00014699,2]
[422329618,1778829043000,-304.77782066,0.00014744,2]
[422329630,1778829043000,-150.0,0.00014795,2]
[422329619,1778829043000,-150.0,0.00014753,2]
[422329621,1778829043000,-150.0,0.00014759,2]
[422329623,1778829043000,-150.0,0.00014762,2]
[422329647,1778829043000,-150.0,0.00014853,2]
[422329688,1778829043000,-210.36484867,0.00014986,2]
[422329655,1778829043000,-150.0,0.00014891,2]
[422329703,1778829043000,-300.0,0.00014999,2]
[422329691,1778829043000,-250.79091868,0.00014986,2]
[422329692,1778829043000,-281.32134049,0.00014986,2]
[422329693,1778829043000,-150.64077623,0.00014986,2]
[422329699,1778829043000,-774.69244979,0.0001499,2]
[422329698,1778829043000,-736.0,0.00014988,2]
[422329700,1778829043000,-300.0,0.00014999,2]
[422329695,1778829043000,-256.94184861,0.00014986,2]
[422329697,1778829043000,-239.69471061,0.00014986,2]
[422329694,1778829043000,-154.13236172,0.00014986,2]
[422329706,1778829043000,-300.0,0.00014999,2]
[422329702,1778829043000,-666.0,0.00014999,2]
[422329710,1778829043000,-300.0,0.00014999,2]
[422329705,1778829043000,-300.0,0.00014999,2]
[422329713,1778829043000,-151.0,0.00015,2]
[422329714,1778829043000,-2076.06689717,0.00015,2]
[422329704,1778829043000,-666.0,0.00014999,2]
[422329712,1778829043000,-11025538.76066187,0.00015,2]
[422329708,1778829043000,-666.0,0.00014999,2]
[422329709,1778829043000,-666.0,0.00014999,2]
[422329715,1778829043000,-3144.531642,0.00015,14]
[422329716,1778829043000,-8082.43942848,0.00015,2]
[422329717,1778829043000,-1769105.00754278,0.00015,2]
[422329654,1778829043000,-150.0,0.00014889,2]
[422329707,1778829043000,-300.0,0.00014999,2]
[422329696,1778829043000,-304.77782066,0.00014986,2]
[422329711,1778829043000,-11032.40812858,0.00015,7]
[422329679,1778829043000,-150.0,0.00014941,2]
[422329701,1778829043000,-300.0,0.00014999,2]
[422329656,1778829043000,-150.0,0.00014895,2]
[422329667,1778829043000,-1433.57245022,0.000149,2]
[422329676,1778829043000,-150.0,0.00014921,2]
[422329648,1778829043000,-150.0,0.00014856,2]
[422329677,1778829043000,-150.0,0.00014923,2]
[422329673,1778829043000,-150.0,0.00014911,2]
[422329662,1778829043000,-12448.07747694,0.000149,2]
[422329674,1778829043000,-150.0,0.00014918,2]
[422329672,1778829043000,-304.77782066,0.00014911,2]
[422329670,1778829043000,-153.53198692,0.000149,2]
[422329675,1778829043000,-150.0,0.0001492,2]
[422329671,1778829043000,-1114.07309122,0.000149,2]
[422329665,1778829043000,-17061.47664226,0.000149,3]
[422329678,1778829043000,-304.77782066,0.00014926,2]
[422329681,1778829043000,-150.0,0.00014953,2]
[422329680,1778829043000,-304.77782066,0.00014941,2]
[422329689,1778829043000,-151.19763869,0.00014986,2]
[422329687,1778829043000,-223.51992335,0.00014986,2]
[422329686,1778829043000,-304.77782066,0.00014971,2]
[422329690,1778829043000,-152.60139807,0.00014986,2]
[422329684,1778829043000,-304.77782066,0.00014956,2]
[422329682,1778829043000,-150.0,0.00014954,2]
[422329683,1778829043000,-150.0,0.00014954,2]
[422329685,1778829043000,-188.55123638,0.0001496,2]
[422329664,1778829043000,-12554.2650312,0.000149,2]
[422329718,1778829044000,-2204.58793365,0.00012887,2]
[422329721,1778829044000,-15292.89871342,0.000149,2]
[422329720,1778829044000,-838.27505484,0.000149,2]
[422329719,1778829044000,-251.85792543,0.00013698,2]
[422329722,1778829045000,-0.63354616,0.000149,2]
[422329723,1778829045000,-337.05962658,0.000149,2]
[422329725,1778829046000,-449.0931147,0.000149,2]
[422329724,1778829046000,-9107.85061053,0.000149,2]
[422329726,1778829046000,-1621.75811326,0.000149,2]
[422329727,1778829046000,-152.0,0.00013398,2]
[422329729,1778829046000,-2768.65808674,0.000149,2]
[422329731,1778829046000,-1467.90001,0.000149,2]
[422329735,1778829046000,-4041.34527787,0.00015,2]
[422329730,1778829046000,-9227.41385117,0.000149,2]
[422329733,1778829046000,-153.53198691,0.000149,2]
[422329734,1778829046000,-7435.2911024,0.00015,2]
[422329732,1778829046000,-2401.92903411,0.000149,2]
[422329736,1778829046000,-311.06851916,0.00015,2]
[422329737,1778829046000,-417.21955137,0.00015,2]
[422329728,1778829046000,-286.03920347,0.000149,2]
[422329743,1778829047000,-450.0,0.00015,2]
[422329748,1778829199000,645.110156,0.00028003,120]
[422329781,1778829759000,4000.0,0.0003013,120]
[422329798,1778829942000,3960.53593876,0.00030137,120]
[422329833,1778830231000,-211.03404087,0.00013588,2]
[422329822,1778830231000,-300.0,0.00012845,2]
[422329825,1778830231000,-97778.76,0.00012846,2]
[422329831,1778830231000,-177.06,0.00013529,2]
[422329826,1778830231000,-181.65,0.00012878,2]
[422329830,1778830231000,-5000.0,0.00013498,2]
[422329828,1778830231000,-411.4781,0.00013377,2]
[422329824,1778830231000,-150.0,0.00012845,2]
[422329827,1778830231000,-444.52,0.00012955,2]
[422329823,1778830231000,-1200.0,0.00012845,2]
[422329817,1778830231000,-214.997284,0.00011652,2]
[422329821,1778830231000,-300.0,0.00012845,2]
[422329819,1778830231000,-200.0,0.00012781,2]
[422329818,1778830231000,-150.0,0.00012781,2]
[422329816,1778830231000,-208.38824723,0.00011641,2]
[422329815,1778830231000,-1492.09087043,0.0001,2]
[422329812,1778830231000,-811.50471421,0.0001,2]
[422329814,1778830231000,-282.94854642,0.0001,2]
[422329813,1778830231000,-400.45,0.0001,2]
[422329811,1778830231000,-271.90586894,0.0001,2]
[422329820,1778830231000,-150.0,0.00012792,2]
[422329829,1778830231000,-2000.0,0.00013477,2]
[422329844,1778830231000,-500.0,0.00013597,2]
[422329834,1778830231000,-391.55,0.00013591,2]
[422329832,1778830231000,-1965.6881421,0.00013563,2]
[422329856,1778830231000,-781.59947675,0.00013597,2]
[422329857,1778830231000,-781.59947675,0.00013597,2]
[422329854,1778830231000,-781.59947675,0.00013597,2]
[422329855,1778830231000,-781.59947675,0.00013597,2]
[422329853,1778830231000,-781.59947675,0.00013597,2]
[422329845,1778830231000,-781.59947675,0.00013597,2]
[422329847,1778830231000,-781.59947675,0.00013597,2]
[422329846,1778830231000,-781.59947675,0.00013597,2]
[422329848,1778830231000,-781.59947675,0.00013597,2]
[422329852,1778830231000,-781.59947675,0.00013597,2]
[422329850,1778830231000,-781.59947675,0.00013597,2]
[422329851,1778830231000,-781.59947675,0.00013597,2]
[422329842,1778830231000,-527.99290041,0.00013597,2]
[422329843,1778830231000,-500.0,0.00013597,2]
[422329840,1778830231000,-511.13281716,0.00013597,3]
[422329841,1778830231000,-500.0,0.00013597,2]
[422329839,1778830231000,-382.808,0.00013597,2]
[422329838,1778830231000,-160.33,0.00013597,2]
[422329849,1778830231000,-781.59947675,0.00013597,2]
[422329836,1778830231000,-500.0,0.00013597,2]
[422329896,1778830232000,-781.59947675,0.00013597,2]
[422329897,1778830232000,-781.59947675,0.00013597,2]
[422329893,1778830232000,-781.59947675,0.00013597,2]
[422329894,1778830232000,-781.59947675,0.00013597,2]
[422329890,1778830232000,-781.59947675,0.00013597,2]
[422329895,1778830232000,-781.59947675,0.00013597,2]
[422329891,1778830232000,-781.59947675,0.00013597,2]
[422329892,1778830232000,-781.59947675,0.00013597,2]
[422329889,1778830232000,-781.59947675,0.00013597,2]
[422329899,1778830232000,-781.59947675,0.00013597,2]
[422329898,1778830232000,-781.59947675,0.00013597,2]
[422329900,1778830232000,-781.59947675,0.00013597,2]
[422329911,1778830232000,-767.38857717,0.00013597,2]
[422329903,1778830232000,-239.41818265,0.00013597,2]
[422329908,1778830232000,-767.38857717,0.00013597,2]
[422329904,1778830232000,-767.38857717,0.00013597,2]
[422329905,1778830232000,-767.38857717,0.00013597,2]
[422329901,1778830232000,-781.59947675,0.00013597,2]
[422329909,1778830232000,-767.38857717,0.00013597,2]
[422329907,1778830232000,-767.38857717,0.00013597,2]
[422329906,1778830232000,-767.38857717,0.00013597,2]
[422329910,1778830232000,-767.38857717,0.00013597,2]
[422329888,1778830232000,-781.59947675,0.00013597,2]
[422329912,1778830232000,-767.38857717,0.00013597,2]
[422329916,1778830232000,-767.38857717,0.00013597,2]
[422329917,1778830232000,-767.38857717,0.00013597,2]
[422329902,1778830232000,-781.59947675,0.00013597,2]
[422329887,1778830232000,-781.59947675,0.00013597,2]
[422329876,1778830232000,-781.59947675,0.00013597,2]
[422329883,1778830232000,-781.59947675,0.00013597,2]
[422329913,1778830232000,-767.38857717,0.00013597,2]
[422329858,1778830232000,-781.59947675,0.00013597,2]
[422329861,1778830232000,-781.59947675,0.00013597,2]
[422329860,1778830232000,-781.59947675,0.00013597,2]
[422329859,1778830232000,-781.59947675,0.00013597,2]
[422329862,1778830232000,-781.59947675,0.00013597,2]
[422329864,1778830232000,-781.59947675,0.00013597,2]
[422329863,1778830232000,-781.59947675,0.00013597,2]
[422329866,1778830232000,-781.59947675,0.00013597,2]
[422329865,1778830232000,-781.59947675,0.00013597,2]
[422329869,1778830232000,-781.59947675,0.00013597,2]
[422329868,1778830232000,-781.59947675,0.00013597,2]
[422329867,1778830232000,-781.59947675,0.00013597,2]
[422329873,1778830232000,-781.59947675,0.00013597,2]
[422329874,1778830232000,-781.59947675,0.00013597,2]
[422329871,1778830232000,-781.59947675,0.00013597,2]
[422329872,1778830232000,-781.59947675,0.00013597,2]
[422329870,1778830232000,-781.59947675,0.00013597,2]
[422329875,1778830232000,-781.59947675,0.00013597,2]
[422329878,1778830232000,-781.59947675,0.00013597,2]
[422329877,1778830232000,-781.59947675,0.00013597,2]
[422329879,1778830232000,-781.59947675,0.00013597,2]
[422329880,1778830232000,-781.59947675,0.00013597,2]
[422329881,1778830232000,-781.59947675,0.00013597,2]
[422329882,1778830232000,-781.59947675,0.00013597,2]
[422329884,1778830232000,-781.59947675,0.00013597,2]
[422329885,1778830232000,-781.59947675,0.00013597,2]
[422329886,1778830232000,-781.59947675,0.00013597,2]
[422329914,1778830232000,-767.38857717,0.00013597,2]
[422329935,1778830232000,-640.29753407,0.00013597,2]
[422329918,1778830232000,-767.38857717,0.00013597,2]
[422329951,1778830232000,-500.0,0.00013698,2]
[422329950,1778830232000,-500.0,0.00013698,2]
[422329954,1778830232000,-500.0,0.00013698,2]
[422329953,1778830232000,-500.0,0.00013698,2]
[422329952,1778830232000,-500.0,0.00013698,2]
[422329958,1778830232000,-500.0,0.00013698,2]
[422329956,1778830232000,-500.0,0.00013698,2]
[422329955,1778830232000,-500.0,0.00013698,2]
[422329959,1778830232000,-500.0,0.00013698,2]
[422329960,1778830232000,-500.0,0.00013698,2]
[422329961,1778830232000,-500.0,0.00013698,2]
[422329962,1778830232000,-501.61257638,0.00013698,2]
[422329965,1778830232000,-672.78,0.00013698,2]
[422329966,1778830232000,-672.78,0.00013698,2]
[422329970,1778830232000,-672.78,0.00013698,2]
[422329963,1778830232000,-672.78,0.00013698,2]
[422329968,1778830232000,-672.78,0.00013698,2]
[422329969,1778830232000,-672.78,0.00013698,2]
[422329964,1778830232000,-672.78,0.00013698,2]
[422329967,1778830232000,-672.78,0.00013698,2]
[422329972,1778830232000,-672.78,0.00013698,2]
[422329971,1778830232000,-672.78,0.00013698,2]
[422329974,1778830232000,-672.78,0.00013698,2]
[422329973,1778830232000,-672.78,0.00013698,2]
[422329975,1778830232000,-672.78,0.00013698,2]
[422329977,1778830232000,-672.78,0.00013698,2]
[422329922,1778830232000,-767.38857717,0.00013597,2]
[422329949,1778830232000,-500.0,0.00013698,2]
[422329948,1778830232000,-500.0,0.00013698,2]
[422329957,1778830232000,-500.0,0.00013698,2]
[422329947,1778830232000,-500.0,0.00013698,2]
[422329919,1778830232000,-767.38857717,0.00013597,2]
[422329920,1778830232000,-767.38857717,0.00013597,2]
[422329921,1778830232000,-767.38857717,0.00013597,2]
[422329945,1778830232000,-500.0,0.00013698,2]
[422329923,1778830232000,-767.38857717,0.00013597,2]
[422329924,1778830232000,-767.38857717,0.00013597,2]
[422329925,1778830232000,-767.38857717,0.00013597,2]
[422329927,1778830232000,-767.38857717,0.00013597,2]
[422329926,1778830232000,-767.38857717,0.00013597,2]
[422329929,1778830232000,-767.38857717,0.00013597,2]
[422329928,1778830232000,-767.38857717,0.00013597,2]
[422329937,1778830232000,-500.0,0.00013597,2]
[422329930,1778830232000,-767.38857717,0.00013597,2]
[422329932,1778830232000,-767.38857717,0.00013597,2]
[422329915,1778830232000,-767.38857717,0.00013597,2]
[422329931,1778830232000,-767.38857717,0.00013597,2]
[422329933,1778830232000,-500.0,0.00013597,2]
[422329941,1778830232000,-202503.69196053,0.00013598,2]
[422329940,1778830232000,-193613.68043012,0.00013598,2]
[422329944,1778830232000,-156.1,0.00013667,2]
[422329939,1778830232000,-1976529.99414652,0.00013598,2]
[422329943,1778830232000,-166.23,0.00013663,2]
[422329946,1778830232000,-500.0,0.00013698,2]
[422329938,1778830232000,-254.18339889,0.00013597,2]
[422329936,1778830232000,-500.0,0.00013597,2]
[422329976,1778830232000,-672.78,0.00013698,2]
[422329934,1778830232000,-500.0,0.00013597,2]
[422329942,1778830232000,-127352.63346283,0.00013598,2]
[422329994,1778830233000,-166.66,0.00013699,2]
[422329990,1778830233000,-500.0,0.00013698,2]
[422329995,1778830233000,-200.0,0.00013699,2]
[422329992,1778830233000,-501.931273,0.00013698,2]
[422329991,1778830233000,-603.34873986,0.00013698,2]
[422329996,1778830233000,-166.66,0.00013836,2]
[422329989,1778830233000,-500.0,0.00013698,2]
[422329993,1778830233000,-2038.01,0.00013699,2]
[422329997,1778830233000,-500.0,0.00013871,2]
[422329988,1778830233000,-500.0,0.00013698,2]
[422329984,1778830233000,-672.78,0.00013698,2]
[422329987,1778830233000,-500.0,0.00013698,2]
[422329983,1778830233000,-672.78,0.00013698,2]
[422329985,1778830233000,-672.78,0.00013698,2]
[422329981,1778830233000,-672.78,0.00013698,2]
[422329982,1778830233000,-672.78,0.00013698,2]
[422329980,1778830233000,-672.78,0.00013698,2]
[422329979,1778830233000,-672.78,0.00013698,2]
[422329978,1778830233000,-672.78,0.00013698,2]
[422329998,1778830233000,-391.55,0.00013931,2]
[422329986,1778830233000,-672.9647041,0.00013698,2]
[422329999,1778830233000,-255.0,0.00013949,2]
[422330021,1778830233000,-253.46543089,0.00014422,2]
[422330001,1778830233000,-250.0,0.00014,2]
[422330023,1778830233000,-851.12712388,0.00014422,2]
[422330022,1778830233000,-622.08376709,0.00014422,2]
[422330015,1778830233000,-500.0,0.00014411,2]
[422330000,1778830233000,-166.66,0.00013973,2]
[422330017,1778830233000,-541.24100416,0.00014419,2]
[422330016,1778830233000,-211.03404087,0.00014412,2]
[422330020,1778830233000,-4842.30270447,0.00014422,2]
[422330014,1778830233000,-166.66,0.00014384,2]
[422330013,1778830233000,-320.0,0.00014356,2]
[422330018,1778830233000,-173172.39699191,0.00014422,2]
[422330012,1778830233000,-160.37012445,0.00014354,2]
[422330010,1778830233000,-6965.5908,0.00014322,2]
[422330019,1778830233000,-1254.41808677,0.00014422,2]
[422330004,1778830233000,-891.0,0.00014129,2]
[422330007,1778830233000,-166.23,0.00014226,2]
[422330005,1778830233000,-500.0,0.00014145,2]
[422330003,1778830233000,-166.66,0.0001411,2]
[422330006,1778830233000,-763.82,0.000142,2]
[422330009,1778830233000,-391.55,0.00014271,2]
[422330011,1778830233000,-3035.95020351,0.00014354,2]
[422330008,1778830233000,-166.66,0.00014247,2]
[422330002,1778830233000,-420.0,0.00014089,2]
[422330032,1778830237000,-531.47068486,0.00014818,2]
[422330036,1778830237000,-500.0,0.00014825,2]
[422330035,1778830237000,-500.0,0.00014825,2]
[422330034,1778830237000,-500.0,0.00014825,2]
[422330033,1778830237000,-500.0,0.00014825,2]
[422330030,1778830237000,-166.23,0.0001479,2]
[422330027,1778830237000,-1244.67,0.00014497,2]
[422330031,1778830237000,-700.0,0.00014808,2]
[422330026,1778830237000,-595.66,0.00014497,2]
[422330028,1778830237000,-3785.97,0.00014497,2]
[422330024,1778830237000,-760.11851838,0.00014422,2]
[422330025,1778830237000,-1318244.08737661,0.00014422,2]
[422330042,1778830237000,-500.0,0.00014825,2]
[422330029,1778830237000,-391.55,0.00014611,2]
[422330044,1778830237000,-500.0,0.00014825,2]
[422330049,1778830237000,-152.0,0.00014828,2]
[422330041,1778830237000,-500.0,0.00014825,2]
[422330043,1778830237000,-500.0,0.00014825,2]
[422330053,1778830237000,-820.68779634,0.000149,2]
[422330052,1778830237000,-2000.0,0.000149,2]
[422330050,1778830237000,-200.0,0.0001488,2]
[422330051,1778830237000,-30285.5635,0.000149,2]
[422330048,1778830237000,-4437.1047894,0.00014826,2]
[422330054,1778830237000,-45829.3783259,0.000149,2]
[422330045,1778830237000,-188572.2537136,0.00014826,2]
[422330046,1778830237000,-3858.7156565,0.00014826,2]
[422330038,1778830237000,-500.0,0.00014825,2]
[422330040,1778830237000,-500.0,0.00014825,2]
[422330039,1778830237000,-500.0,0.00014825,2]
[422330037,1778830237000,-500.0,0.00014825,2]
[422330047,1778830237000,-185776.1117958,0.00014826,2]
[422330060,1778830238000,-343.72896252,0.00014999,2]
[422330055,1778830238000,-1076.55582393,0.000149,2]
[422330056,1778830238000,-2785.1867304,0.000149,2]
[422330057,1778830238000,-391.55,0.00014951,2]
[422330058,1778830238000,-211.03404087,0.0001499,2]
[422330062,1778830238000,-500.0,0.00014999,2]
[422330059,1778830238000,-156.27103748,0.00014999,2]
[422330065,1778830238000,-315.74861327,0.00014999,2]
[422330063,1778830238000,-500.0,0.00014999,2]
[422330066,1778830238000,-500.0,0.00014999,2]
[422330064,1778830238000,-184.25138673,0.00014999,2]
[422330067,1778830238000,-500.0,0.00014999,2]
[422330068,1778830238000,-237.77138673,0.00014999,2]
[422330061,1778830238000,-500.0,0.00014999,2]
[422330090,1778830239000,-616.49012855,0.00014999,2]
[422330085,1778830239000,-500.0,0.00014999,2]
[422330086,1778830239000,-500.0,0.00014999,2]
[422330083,1778830239000,-500.0,0.00014999,2]
[422330082,1778830239000,-500.0,0.00014999,2]